fUSD/lending_fUSD_20240620
["ID","MTS","AMOUNT","RATE_DAILY","PERIOD"]
[329982438,1718893848591,-1035.164574,0.000149,2]
[329982440,1718893848603,-151.0,0.000149,2]
[329982442,1718893848611,-151.0,0.000149,2]
[329982444,1718893848620,-202.989899,0.000149,2]
[329982446,1718893848629,-151.0,0.000149,2]
[329982448,1718893848640,-151.0,0.000149,2]
[329982450,1718893848649,-202.989899,0.000149,2]
[329982452,1718893848658,-573.249477,0.000149,2]
[329982454,1718893848667,-573.249477,0.000149,2]
[329982456,1718893848676,-151.0,0.000149,2]
[329982458,1718893848685,-817.967668,0.000149,2]
[329982460,1718893848694,-641.003366,0.000149,2]
[329982462,1718893848702,-151.0,0.000149,2]
[329982464,1718893848711,-151.0,0.000149,2]
[329982466,1718893848720,-817.967668,0.000149,2]
[329982468,1718893848729,-641.003366,0.000149,2]
[329982470,1718893848739,-151.0,0.000149,2]
[329982472,1718893848748,-825.700979,0.000149,2]
[329982474,1718893848757,-160.117686,0.000149,2]
[329982476,1718893848767,-825.700979,0.000149,2]
[329982478,1718893848776,-151.0,0.000149,2]
[329982480,1718893848784,-151.0,0.000149,2]
[329982481,1718893848793,-151.0,0.000149,2]
[329982483,1718893848802,-151.0,0.000149,2]
[329982485,1718893848812,-151.0,0.000149,2]
[329982487,1718893848821,-4726.767255,0.000149,2]
[329982489,1718893848830,-4726.767255,0.000149,2]
[329982491,1718893848839,-151.0,0.000149,2]
[329982494,1718893848852,-151.0,0.000149,2]
[329982496,1718893848861,-188.70805,0.000149,2]
[329982498,1718893848871,-151.0,0.000149,2]
[329982500,1718893848881,-151.0,0.000149,2]
[329982502,1718893848891,-151.0,0.000149,2]
[329982504,1718893848900,-156.707561,0.000149,2]
[329982505,1718893848910,-355.0,0.000149,2]
[329982507,1718893848920,-151.0,0.000149,2]
[329982510,1718893848931,-235.44333332,0.000149,2]
[329982511,1718893848940,-151.0,0.000149,2]
[329982513,1718893848949,-151.0,0.000149,2]
[329982515,1718893848959,-151.0,0.000149,2]
[329982518,1718893848968,-212.7551516,0.000149,2]
[329982519,1718893848977,-1750.751975,0.000149,2]
[329982521,1718893848989,-1750.751975,0.000149,2]
[329982523,1718893848999,-151.0,0.000149,2]
[329982525,1718893849009,-1000.0,0.000149,2]
[329982527,1718893849018,-325.76231733,0.000149,2]
[329982529,1718893849028,-1772.96,0.00014903,2]
[329982531,1718893849037,-150.0,0.00014932,2]
[329982533,1718893849046,-800.30945614,0.0001497,2]
[329982535,1718893849055,-151.31,0.00014989,2]
[329982537,1718893849065,-1399.8052411,0.00014989,2]
[329982539,1718893849074,-437.7082273,0.00014989,2]
[329982541,1718893849083,-9430.2203331,0.00014989,2]
[329982543,1718893849093,-1344.7723208,0.0001499,2]
[329982545,1718893849104,-1289.7394006,0.0001499,2]
[329982547,1718893849114,-1234.7064804,0.0001499,2]
[329982549,1718893849122,-1179.6735602,0.0001499,2]
[329982551,1718893849131,-1124.64064,0.0001499,2]
[329982553,1718893849141,-417.7306157,0.0001499,2]
[329982555,1718893849150,-397.7530042,0.0001499,2]
[329982557,1718893849159,-377.7753927,0.0001499,2]
[329982559,1718893849169,-357.7977812,0.0001499,2]
[329982561,1718893849179,-337.8201697,0.0001499,2]
[329982563,1718893849188,-9121.3052931,0.0001499,2]
[329982565,1718893849197,-8812.3902532,0.0001499,2]
[329982567,1718893849206,-8503.4752133,0.0001499,2]
[329982569,1718893849215,-8194.5601734,0.0001499,2]
[329982571,1718893849225,-7885.6451334,0.0001499,2]
[329982573,1718893849234,-151.31,0.0001499,2]
[329982575,1718893849244,-151.31,0.0001499,2]
[329982577,1718893849254,-151.31,0.0001499,2]
[329982579,1718893849264,-151.31,0.0001499,2]
[329982581,1718893849273,-151.31,0.0001499,2]
[329982583,1718893849283,-151.31,0.0001499,2]
[329982585,1718893849292,-151.31,0.0001499,2]
[329982587,1718893849302,-151.31,0.0001499,2]
[329982589,1718893849311,-151.31,0.0001499,2]
[329982591,1718893849321,-151.31,0.0001499,2]
[329982593,1718893849330,-151.31,0.0001499,2]
[329982594,1718893849340,-151.31,0.0001499,2]
[329982596,1718893849351,-151.31,0.0001499,2]
[329982597,1718893849361,-151.31,0.0001499,2]
[329982598,1718893849371,-151.31,0.0001499,2]
[329982599,1718893849381,-151.31,0.0001499,2]
[329982600,1718893849391,-151.31,0.0001499,2]
[329982601,1718893849400,-151.31,0.0001499,2]
[329982602,1718893849409,-151.31,0.0001499,2]
[329982603,1718893849418,-151.31,0.0001499,2]
[329982604,1718893849427,-151.31,0.0001499,2]
[329982605,1718893849437,-151.31,0.0001499,2]
[329982607,1718893849446,-151.31,0.0001499,2]
[329982609,1718893849455,-151.31,0.0001499,2]
[329982611,1718893849464,-151.31,0.0001499,2]
[329982612,1718893849473,-151.31,0.0001499,2]
[329982614,1718893849483,-151.31,0.0001499,2]
[329982616,1718893849492,-151.31,0.0001499,2]
[329982618,1718893849502,-151.31,0.0001499,2]
[329982620,1718893849512,-151.31,0.0001499,2]
[329982622,1718893849521,-151.31,0.0001499,2]
[329982624,1718893849531,-151.31,0.0001499,2]
[329982626,1718893849540,-151.31,0.0001499,2]
[329982628,1718893849552,-151.31,0.0001499,2]
[329982630,1718893849564,-151.31,0.0001499,2]
[329982632,1718893849574,-151.31,0.0001499,2]
[329982634,1718893849583,-151.31,0.0001499,2]
[329982636,1718893849596,-151.31,0.0001499,2]
[329982639,1718893849606,-151.31,0.0001499,2]
[329982640,1718893849615,-151.31,0.0001499,2]
[329982642,1718893849624,-151.31,0.0001499,2]
[329982644,1718893849634,-151.31,0.0001499,2]
[329982647,1718893849646,-151.31,0.0001499,2]
[329982648,1718893849657,-151.31,0.0001499,2]
[329982650,1718893849667,-5904.72030139,0.00014999,2]
[329982652,1718893849677,-3452575.7770188,0.00015,2]
[329982655,1718893849693,-490.0,0.00015,2]
[329982657,1718893849702,-490.0,0.00015,2]
[329982659,1718893849711,-490.0,0.00015,2]
[329982661,1718893849721,-2000.0,0.00015,2]
[329982663,1718893849730,-1258.0,0.00015,2]
[329982665,1718893849740,-301.06576681,0.00015,2]
[329982667,1718893849750,-1660383.32846292,0.00015,2]
[329982669,1718893849759,-12862.5491634,0.00015,2]
[329982671,1718893849768,-1000.0,0.00015,3]
[329982673,1718893849778,-16730.85430657,0.00015,2]
[329982680,1718893849833,-51871.10400001,0.00015,2]
[329982682,1718893849847,-6460.5,0.00015,2]
[329982684,1718893849859,-317.91890081,0.00015,2]
[329982687,1718893849871,-5910.0721758,0.00015,2]
[329982689,1718893849883,-250.38962957,0.00015,2]
[329982698,1718893849963,-1123.35130873,0.00015,2]
[329982700,1718893849975,-645.76,0.00015,2]
[329982702,1718893849987,-351.925,0.00015,2]
[329982868,1718893851635,-2248.0370989,0.00014,2]
[329982870,1718893851646,-2169.48807105,0.00014,2]
[329982873,1718893851659,-78.54902785,0.00014,2]
[329982875,1718893851669,-2248.0370989,0.00014,2]
[329982877,1718893851679,-2248.0370989,0.00014,2]
[329982879,1718893851689,-2248.0370989,0.00014,2]
[329982881,1718893851699,-2248.0370989,0.00014,2]
[329982883,1718893851709,-2248.0370989,0.00014,2]
[329982885,1718893851718,-2248.0370989,0.00014,2]
[329982887,1718893851729,-2248.0370989,0.00014,2]
[329982889,1718893851740,-2248.0370989,0.00014,2]
[329982892,1718893851750,-2248.0370989,0.00014,2]
[329982894,1718893851761,-2248.0370989,0.00014,2]
[329982896,1718893851772,-2248.0370989,0.00014,2]
[329982898,1718893851782,-2248.0370989,0.00014,2]
[329982900,1718893851792,-2248.0370989,0.00014,2]
[329982902,1718893851802,-151.95189312,0.00014048,2]
[329982904,1718893851812,-166.174363,0.000149,2]
[329982906,1718893851821,-9077.70684682,0.00015,2]
[329982908,1718893851833,-875.82500001,0.00015,2]
[329982915,1718893851885,-305.77633098,0.00014,2]
[329982917,1718893851897,-273.72011597,0.00014,2]
[329983175,1718894025786,459.33,0.00012014,2]
[329983176,1718894028148,9000.0,0.00025,60]
[329983177,1718894051474,9165.42947779,0.00012,2]
[329983178,1718894164552,815.46,0.00010959,2]
[329983193,1718894499052,-250.0,0.00013076,2]
[329983194,1718894499078,-1405.5,0.00013076,2]
[329983195,1718894499102,-2294.72626286,0.00013378,2]
[329983196,1718894499129,-300.0,0.00013378,2]
[329983197,1718894499154,-2294.72626284,0.00013379,2]
[329983198,1718894499181,-3455.0474743,0.00013379,2]
[329983199,1718894500960,-10000.0,0.00013379,2]
[329983200,1718894501314,-10000.0,0.00013379,2]
[329983201,1718894501705,-10000.0,0.00013379,2]
[329983202,1718894502097,-10000.0,0.00013379,2]
[329983203,1718894502730,-10000.0,0.00013379,2]
[329983204,1718894502896,-4150.2533257,0.00013379,2]
[329983205,1718894502918,-2294.72626284,0.00013379,2]
[329983206,1718894502940,-150.0,0.00013478,2]
[329983207,1718894502961,-150.0,0.00013479,2]
[329983208,1718894502983,-3255.02041146,0.00013479,2]
[329983209,1718894503495,-10000.0,0.00013479,2]
[329983210,1718894503746,-10000.0,0.00013479,2]
[329983211,1718894504167,-10000.0,0.00013479,2]
[329983212,1718894504798,-10000.0,0.00013479,2]
[329983213,1718894505136,-10000.0,0.00013479,2]
[329983214,1718894505480,-10000.0,0.00013479,2]
[329983215,1718894505825,-10000.0,0.00013479,2]
[329983216,1718894506212,-10000.0,0.00013479,2]
[329983217,1718894506523,-8628.45038854,0.00013479,2]
[329983218,1718894506547,-1371.54961146,0.00013479,2]
[329983219,1718894506996,-10000.0,0.00013479,2]
[329983220,1718894507244,-10000.0,0.00013479,2]
[329983221,1718894507831,-10000.0,0.00013479,2]
[329983222,1718894508519,-10000.0,0.00013479,2]
[329983223,1718894543531,-300.0,0.00013478,2]
[329983224,1718894543553,-150.0,0.00013478,2]
[329983225,1718894543576,-1350.0,0.00013479,2]
[329983226,1718894565186,-167.45,0.00013344,2]
[329983227,1718894565208,-157.1409,0.00013379,2]
[329983228,1718894565233,-9675.4091,0.00013479,2]
[329983229,1718894565782,-10000.0,0.00013479,2]
[329983230,1718894566609,-10000.0,0.00013479,2]
[329983231,1718894567278,-10000.0,0.00013479,2]
[329983232,1718894573708,-5710.0,0.00013479,2]
[329983233,1718894578496,539.3,0.00011424,2]
[329983234,1718894612108,-3482.89006,0.00013411,2]
[329983235,1718894612131,-4637.10994,0.00013479,2]
[329983236,1718894751510,614.81,0.00010959,2]
[329983253,1718895011959,158.9647594,0.00012969,2]
[329983254,1718895031344,200.0,0.00012646,2]
[329983258,1718895034901,-250.0,0.00013025,2]
[329983260,1718895034911,-110.67999992,0.00013069,2]
[329983270,1718895035371,-692.12000008,0.00013069,2]
[329983271,1718895035380,-1000.0,0.00013087,2]
[329983272,1718895035394,-220.99999992,0.0001309,2]
[329983273,1718895035408,-29.00000008,0.0001309,2]
[329983274,1718895035421,-150.0,0.00013478,2]
[329983275,1718895035434,-150.0,0.00013478,2]
[329983276,1718895035446,-4762.93470691,0.00013479,2]
[329983277,1718895035562,-11374.13143,0.00013479,2]
[329983278,1718895035576,-136118.86521163,0.00013479,2]
[329983280,1718895035590,-600.0,0.000135,4]
[329983282,1718895035602,-209.72006092,0.000135,2]
[329983284,1718895035614,-151.95189312,0.000135,2]
[329983287,1718895035626,-1506.27175744,0.0001358,2]
[329983289,1718895035636,-1252763.49045359,0.000136,2]
[329983315,1718895038192,-3390.20012,0.000136,2]
[329983317,1718895038206,-1170.66677575,0.000136,2]
[329983318,1718895038220,-940.04146597,0.000136,2]
[329983324,1718895038769,-692.51,0.000136,2]
[329983326,1718895038784,-734.70866164,0.000136,2]
[329983328,1718895038798,-7962.14027388,0.000136,2]
[329983501,1718895040576,-303.18659722,0.000136,2]
[329983505,1718895040590,-11118.94398075,0.000136,2]
[329983507,1718895040604,-29681.59744606,0.000136,2]
[329983551,1718895041042,-751.980007,0.000136,2]
[329983553,1718895041055,-849.5582847,0.000136,2]
[329983555,1718895041068,-1761.95000003,0.000136,2]
[329983558,1718895041082,-606.7124274,0.000136,2]
[329983578,1718895041399,172.79,0.00010765,2]
[329983783,1718895043451,-10702.70300256,0.000136,2]
[329983784,1718895043462,-1000.0,0.000136,2]
[329983785,1718895043474,-508.1055248,0.000136,2]
[329983830,1718895043901,-122000.09227331,0.000136,2]
[329983833,1718895043927,-697.39124285,0.000136,2]
[329983857,1718895044153,-4887.07965,0.000135,2]
[329983860,1718895044165,-701.33067573,0.000135,2]
[329984145,1718895046864,-831.51467711,0.000135,2]
[329984147,1718895046879,-7085.1,0.000135,2]
[329984149,1718895046892,-3946.5,0.000135,2]
[329984152,1718895046904,-7265.7,0.000135,2]
[329984154,1718895046917,-642.52569257,0.000135,2]
[329984156,1718895046931,-500.0,0.000135,2]
[329984158,1718895046943,-1197.39698254,0.000135,2]
[329984161,1718895046958,-516.21750002,0.000135,2]
[329984163,1718895046970,-839.57267957,0.000135,2]
[329984229,1718895102833,687.18,0.00011333,2]
[329984230,1718895474436,250.0,0.00012817,2]
[329984231,1718895531362,786.0,0.00025,60]
[329984232,1718895544821,2342.436055,0.00012957,2]
[329984233,1718895580124,200.0,0.00012975,2]
[329984234,1718895607692,250.0,0.00012975,2]
[329984235,1718895617871,200.0,0.00012975,2]
[329984236,1718895631031,172.79,0.00010419,2]
[329984237,1718895700730,4211.7291856,0.00012994,2]
[329984238,1718895728319,-652.82,0.00011132,2]
[329984239,1718895728344,-894.3008144,0.00012994,2]
[329984240,1718895728369,-732.42,0.00013022,2]
[329984241,1718895728395,-250.0,0.00013029,2]
[329984242,1718895728419,-729.19,0.00013076,2]
[329984243,1718895728444,-150.0,0.00013153,2]
[329984244,1718895728469,-300.0,0.00013153,2]
[329984245,1718895728496,-187.55,0.00013154,2]
[329984246,1718895870006,163.73,0.00013085,2]
[329984247,1718895977012,150.0,0.0001302,2]
[329984268,1718896124028,840.0,0.00013027,2]
[329984269,1718896180424,-250.0,0.00013162,2]
[329984270,1718896180448,-487.94,0.00013209,2]
[329984271,1718896180471,-339.81088627,0.00013367,2]
[329984272,1718896180495,-652.82,0.00013396,2]
[329984273,1718896180517,-6500.4668,0.000134,2]
[329984274,1718896180540,-1768.96231373,0.00013424,2]
[329984275,1718896182128,-10000.0,0.00013424,2]
[329984276,1718896182667,-10000.0,0.00013424,2]
[329984277,1718896183556,-10000.0,0.00013424,2]
[329984278,1718896184145,-10000.0,0.00013424,2]
[329984279,1718896184908,-10000.0,0.00013424,2]
[329984280,1718896185460,-10000.0,0.00013424,2]
[329984281,1718896186436,-10000.0,0.00013424,2]
[329984282,1718896187122,-10000.0,0.00013424,2]
[329984283,1718896204743,-10000.0,0.00013424,2]
[329984284,1718896217858,-186.28075111,0.00013422,2]
[329984285,1718896217882,-186.28075111,0.00013422,2]
[329984286,1718896217909,-9627.43849778,0.00013424,2]
[329984288,1718896232482,-250.0,0.00012543,2]
[329984290,1718896232493,-32297.01114,0.00013424,2]
[329984292,1718896232509,-1082.26155855,0.00013424,2]
[329984294,1718896232521,-2500.008256,0.00013424,2]
[329984296,1718896232533,-856.26166783,0.00013424,2]
[329984299,1718896232545,-46529.83394395,0.00013424,2]
[329984302,1718896232995,-3122.66084388,0.00013424,2]
[329984305,1718896233007,-28571.85685487,0.00013424,2]
[329984307,1718896233019,-16307.55,0.00013424,2]
[329984309,1718896233030,-1943.46291379,0.00013424,2]
[329984311,1718896233041,-1619.1726,0.00013424,2]
[329984313,1718896233052,-1094.72364763,0.00013424,2]
[329984316,1718896233063,-1119.44553033,0.00013424,2]
[329984334,1718896233419,-839.77396302,0.00013424,2]
[329984335,1718896233430,-759.08000022,0.00013424,2]
[329984336,1718896233444,-133304.30441172,0.00013424,2]
[329984337,1718896233456,-64543.68783659,0.00013424,2]
[329984338,1718896233467,-415.09721781,0.00013424,2]
[329984339,1718896233479,-359.16532702,0.00013424,2]
[329984340,1718896233492,-1231.85132041,0.00013424,2]
[329984341,1718896233505,-311.84172578,0.00013424,2]
[329984342,1718896233516,-803.60000004,0.00013424,2]
[329984343,1718896233527,-719.56763967,0.00013424,2]
[329984344,1718896233541,-10324.02555427,0.00013424,2]
[329984350,1718896240562,-1311.35563178,0.00013424,2]
[329984354,1718896240575,-403.80780873,0.00013424,2]
[329984358,1718896240587,-3330.42770352,0.00013424,2]
[329984360,1718896240600,-532.79996134,0.00013424,2]
[329984361,1718896240612,-335.125,0.00013424,2]
[329984362,1718896240626,-285.96467678,0.00013424,2]
[329984363,1718896240637,-681.04810104,0.00013424,2]
[329984364,1718896240649,-638.89389986,0.00013424,2]
[329984365,1718896240662,-7042.92,0.00013424,2]
[329984366,1718896240673,-764.48504295,0.00013424,2]
[329984367,1718896240684,-6541.9,0.00013424,2]
[329984368,1718896240695,-346.7403356,0.00013424,2]
[329984369,1718896240707,-609.51916894,0.00013424,2]
[329984370,1718896240718,-3027.95925375,0.00013424,2]
[329984372,1718896241061,-443.23700073,0.00013424,2]
[329984374,1718896241073,-749.48334203,0.00013424,2]
[329984376,1718896241084,-5198.16634652,0.00013424,2]
[329984379,1718896241095,-1040.80179994,0.00013424,2]
[329984382,1718896241106,-443.0644103,0.00013424,2]
[329984385,1718896241118,-501.7001713,0.00013424,2]
[329984389,1718896241129,-8011.06226156,0.00013424,2]
[329984392,1718896241141,-471.4261837,0.00013424,2]
[329984395,1718896241154,-13653.39002323,0.00013424,2]
[329984397,1718896241165,-6840.44346774,0.00013424,2]
[329984399,1718896241176,-281.186742,0.00013424,2]
[329984402,1718896241187,-461.74,0.00013424,2]
[329984404,1718896241199,-314.33454932,0.00013424,2]
[329984406,1718896241210,-402.07166042,0.00013424,2]
[329984408,1718896241224,-2366.84226352,0.00013424,2]
[329984411,1718896241236,-3276.87152982,0.00013424,2]
[329984413,1718896241248,-1291.95839779,0.00013424,2]
[329984647,1718896243606,-227.30600716,0.00013372,2]
[329984651,1718896243616,-1176.93816743,0.00013424,2]
[329984654,1718896243627,-667.35,0.00013424,2]
[329984657,1718896243639,-3248.22772491,0.00013424,2]
[329984743,1718896244268,-22397.75906476,0.00013424,2]
[329984745,1718896244278,-186.28075111,0.00013426,2]
[329984747,1718896244288,-4349.96993614,0.0001343,2]
[329984749,1718896244301,-5934.35859859,0.0001343,2]
[329984751,1718896244313,-423.96701383,0.0001343,2]
[329984754,1718896244326,-7200.0,0.0001343,2]
[329984756,1718896244339,-361.6920653,0.0001343,2]
[329984796,1718896244809,-87530.03838658,0.0001343,2]
[329984798,1718896244819,-105800.02600044,0.00013431,2]
[329984800,1718896244831,-255.94673322,0.00013433,2]
[329984802,1718896244841,-551143.6464562,0.00013434,2]
[329984804,1718896244851,-368728.95801455,0.00013435,2]
[329984806,1718896244862,-279.39378656,0.00013435,2]
[329984852,1718896245370,-9112.13418939,0.00013435,2]
[329984905,1718896246964,-1337.40941218,0.00013435,2]
[329984907,1718896246976,-21501.39982837,0.00013435,2]
[329984909,1718896246988,-150184.35122515,0.00013435,2]
[329984911,1718896246998,-105800.02600044,0.0001345,2]
[329984913,1718896247007,-105800.02600044,0.00013455,2]
[329984915,1718896247016,-182.690909,0.00013462,2]
[329984917,1718896247026,-182.690909,0.00013462,2]
[329984919,1718896247036,-4254.09053,0.00013462,2]
[329984921,1718896247046,-551143.6464562,0.00013462,2]
[329984922,1718896247055,-150.0,0.00013467,2]
[329984924,1718896247065,-255.94673322,0.00013468,2]
[329984926,1718896247074,-7917.58502297,0.00013468,2]
[329984928,1718896247086,-629.27928532,0.00013468,2]
[329984930,1718896247097,-1335.12,0.00013468,2]
[329984932,1718896247108,-2652.80679033,0.00013468,2]
[329984934,1718896247120,-93265.23490182,0.00013468,2]
[329984936,1718896247130,-255.94673322,0.0001347,2]
[329984938,1718896247139,-182.690909,0.0001347,2]
[329984940,1718896247149,-182.690909,0.0001347,2]
[329984942,1718896247160,-4254.09053,0.0001347,2]
[329984944,1718896247169,-255.94673322,0.0001347,2]
[329984946,1718896247178,-173399.75042694,0.0001347,2]
[329984948,1718896247190,-707.02783621,0.0001347,2]
[329984950,1718896247200,-654.68,0.0001347,2]
[329984953,1718896247211,-3250.57147,0.0001347,2]
[329984955,1718896247222,-1255.19664078,0.0001347,2]
[329984960,1718896267401,433.59,0.00010959,2]
[329984961,1718896330318,667.43,0.00010619,2]
[329984963,1718896781072,-2669.31,0.00012164,2]
[329984964,1718896781095,-250.0,0.00012198,2]
[329984965,1718896781117,-328.0,0.00012205,2]
[329984966,1718896781139,-2406.01,0.00012216,2]
[329984967,1718896781165,-186.51,0.00012228,2]
[329984968,1718896781188,-150.0,0.00012467,2]
[329984969,1718896781211,-300.0,0.00012467,2]
[329984970,1718896781234,-300.0,0.00012467,2]
[329984971,1718896781258,-5907.8213,0.00012468,2]
[329984972,1718896896273,634.05,0.00010286,2]
[329984973,1718896951896,-16266.86,0.00012199,2]
[329984974,1718896951921,-3733.14,0.00012206,2]
[329984975,1718896956405,-17215.64,0.00012206,2]
[329984976,1718896956427,-250.0,0.00012216,2]
[329984977,1718896956448,-189.3,0.00012303,2]
[329984978,1718896956470,-150.0,0.00012467,2]
[329984979,1718896956494,-150.0,0.00012467,2]
[329984980,1718896956518,-634.05,0.0001255,2]
[329984981,1718896956541,-156.96,0.00012555,2]
[329984982,1718896956564,-188.12,0.00012571,2]
[329984983,1718896956587,-156.96,0.00012605,2]
[329984984,1718896956613,-499.99,0.00012605,2]
[329984985,1718896956635,-408.98,0.00012605,2]
[329984986,1718896961992,1621.02407655,0.00026,90]
[329984987,1718897147412,-187.55,0.00012218,2]
[329984988,1718897147437,-3752.2575,0.00012367,2]
[329984989,1718897147467,-156.96,0.00012497,2]
[329984990,1718897147493,-156.96,0.00012556,2]
[329984991,1718897147519,-2692.8,0.00012605,2]
[329984992,1718897147548,-156.96,0.00012615,2]
[329984993,1718897147576,-156.96,0.00012675,2]
[329984994,1718897147602,-150.0,0.00012705,2]
[329984995,1718897147628,-300.0,0.00012705,2]
[329984996,1718897147654,-300.0,0.00012705,2]
[329984997,1718897147682,-1857.43,0.00012706,2]
[329984998,1718897147710,-299.99,0.00012706,2]
[329984999,1718897147736,-156.96,0.00012734,2]
[329985000,1718897147765,-156.96,0.00012793,2]
[329985001,1718897147790,-917.14,0.00012807,2]
[329985002,1718897147817,-250.0,0.00012817,2]
[329985003,1718897147842,-877.18,0.00012817,2]
[329985004,1718897147867,-156.96,0.00012852,2]
[329985005,1718897147892,-2539.45,0.00012897,2]
[329985006,1718897147916,-4777.4825,0.00012907,2]
[329985007,1718897153445,-20000.0,0.00012907,2]
[329985027,1718897432136,570.64,0.00010374,2]
[329985029,1718897433349,-250.0,0.00012311,2]
[329985030,1718897433359,-250.0,0.00012334,2]
[329985031,1718897433369,-121.39302271,0.00012401,2]
[329985052,1718897439433,-616.20697729,0.00012401,2]
[329985053,1718897439443,-800.0,0.000126,4]
[329985054,1718897439455,-570.64,0.00012638,2]
[329985055,1718897439465,-1700.0,0.000127,4]
[329985056,1718897439474,-2600.0,0.000128,4]
[329985057,1718897439484,-3500.0,0.000129,4]
[329985058,1718897439494,-150.0,0.00012905,2]
[329985059,1718897439505,-300.0,0.00012905,2]
[329985060,1718897439515,-1000.0,0.00012906,2]
[329985061,1718897439526,-5222.5075,0.00012907,2]
[329985062,1718897439537,-29999.99,0.00012907,2]
[329985063,1718897439547,-6530.49437185,0.00012907,2]
[329985064,1718897439559,-13469.49562815,0.00012907,2]
[329985065,1718897439570,-9999.99,0.00012907,2]
[329985066,1718897439580,-4417.99,0.00012907,2]
[329985067,1718897439590,-156.96,0.00012911,2]
[329985068,1718897439600,-156.96,0.00012971,2]
[329985069,1718897439611,-156.96,0.0001303,2]
[329985070,1718897439621,-156.96,0.00013089,2]
[329985071,1718897439630,-156.96,0.00013148,2]
[329985072,1718897439640,-625.0,0.00013264,2]
[329985073,1718897439650,-300.0,0.00013324,2]
[329985074,1718897439660,-625.0,0.00013333,2]
[329985075,1718897439672,-154.68170655,0.00013336,2]
[329985076,1718897439682,-370.11444388,0.0001334,2]
[329985077,1718897439692,-154.68170655,0.00013349,2]
[329985078,1718897439703,-154.68170655,0.00013362,2]
[329985079,1718897439714,-544.10558858,0.00013362,2]
[329985080,1718897439724,-544.10558858,0.00013364,2]
[329985081,1718897439734,-9158.77249304,0.00013364,2]
[329985082,1718897439743,-170.07113814,0.00013364,2]
[329985083,1718897439753,-172.25146249,0.00013364,2]
[329985084,1718897439764,-544.10558858,0.00013365,2]
[329985085,1718897439777,-219.97,0.0001337,3]
[329985086,1718897439787,-58297.5393,0.0001337,2]
[329985087,1718897439797,-1366.4857,0.0001337,2]
[329985088,1718897439807,-154.68170655,0.00013375,2]
[329985089,1718897439817,-151.5373381,0.00013387,2]
[329985090,1718897439827,-1000.0,0.000134,2]
[329985091,1718897439838,-806.0,0.000134,2]
[329985092,1718897439850,-336597.88335831,0.00013433,2]
[329985093,1718897439861,-163.80590926,0.00013436,2]
[329985094,1718897439872,-212.90534416,0.00013439,2]
[329985095,1718897439882,-3179.79648663,0.0001344,2]
[329985096,1718897439892,-163.80590926,0.00013443,2]
[329985097,1718897439902,-278.19599941,0.00013443,2]
[329985098,1718897439913,-163.80590926,0.00013444,2]
[329985099,1718897439923,-31063.21089787,0.00013453,2]
[329985100,1718897439933,-58190.01430024,0.00013454,2]
[329985101,1718897439943,-14760.51478982,0.00013461,2]
[329985102,1718897439958,-873.81182588,0.00013461,2]
[329985104,1718897441053,-56190.7168866,0.00013461,2]
[329985108,1718897441065,-477.56143352,0.00013461,2]
[329985111,1718897441076,-1361.36,0.00013461,2]
[329985115,1718897441089,-9872.58570166,0.00013461,2]
[329985118,1718897441101,-24033.54994718,0.00013461,2]
[329985120,1718897441113,-875.33626534,0.00013461,2]
[329985123,1718897441125,-1245.03939917,0.00013461,2]
[329985125,1718897441137,-325.195,0.00013461,2]
[329985128,1718897441149,-396.96657,0.00013461,2]
[329985160,1718897441456,-0.01211087,0.00013461,2]
[329985162,1718897441468,-5341.56197791,0.00013461,2]